fUST/lending_fUST_20240915
["ID","MTS","AMOUNT","RATE_DAILY","PERIOD"]
[338224865,1726392132264,-191.36406557,0.00026988,2]
[338224866,1726392132287,-6854.3285874,0.0002699,4]
[338224867,1726392132310,-25715.2574406,0.0002699,4]
[338224868,1726392132332,-5387.99,0.0002699,3]
[338224869,1726392132355,-8412.44,0.0002699,3]
[338224870,1726392132379,-7010.37,0.0002699,3]
[338224871,1726392132401,-5841.97,0.0002699,3]
[338224872,1726392132423,-31729.80336985,0.00027,5]
[338224875,1726392274832,-150.0,0.000219,2]
[338224876,1726392274856,-300.0,0.00025891,2]
[338224877,1726392274883,-24450.0,0.00025892,2]
[338224880,1726392562344,-150.0,0.000219,2]
[338224902,1726392631578,150.0,0.00023155,2]
[338224937,1726392632023,-8361.03662823,0.00025,2]
[338224939,1726392632033,-450.0,0.00025892,2]
[338224940,1726392632042,-300.0,0.00026573,2]
[338224942,1726392632052,-300.0,0.00026573,2]
[338224944,1726392632061,-6072.37310282,0.00026719,2]
[338224947,1726392632070,-9424.43888995,0.00026783,2]
[338224954,1726392637983,452.77748013,0.00023155,2]
[338224956,1726392638173,-71.22251987,0.00023155,2]
[338224957,1726392638184,-10575.56111005,0.00026783,2]
[338224958,1726392638194,-314.19852352,0.000269,2]
[338224959,1726392638204,-41833.43328084,0.00027,5]
[338224960,1726392638214,-202.48077168,0.00027297,7]
[338224961,1726392638223,-202.98,0.00027297,7]
[338224962,1726392638233,-162.13461734,0.00027297,7]
[338224963,1726392638243,-162.13461734,0.00027297,7]
[338224964,1726392638254,-162.13461734,0.00027297,7]
[338224965,1726392638263,-162.13461734,0.00027297,7]
[338224966,1726392638274,-162.13461734,0.00027297,7]
[338224967,1726392638284,-162.13461734,0.00027297,7]
[338224968,1726392638295,-162.13461734,0.00027297,7]
[338224969,1726392638307,-162.13461734,0.00027297,7]
[338224970,1726392638319,-162.13461734,0.00027297,7]
[338224971,1726392638330,-162.63,0.00027297,7]
[338224972,1726392638340,-1239.92879999,0.00027297,2]
[338224973,1726392638351,-155.62114513,0.00027297,7]
[338224974,1726392638361,-155.62114513,0.00027297,7]
[338224975,1726392638373,-155.62114513,0.00027297,7]
[338224976,1726392638383,-155.62114513,0.00027297,7]
[338224977,1726392638393,-156.12,0.00027297,7]
[338224978,1726392638405,-155.69614513,0.00027297,7]
[338224979,1726392638416,-155.69614513,0.00027297,7]
[338224980,1726392638428,-155.69614513,0.00027297,7]
[338224981,1726392638437,-155.69614513,0.00027297,7]
[338224982,1726392638447,-155.69614513,0.00027297,7]
[338224983,1726392638457,-155.69614513,0.00027297,7]
[338224984,1726392638466,-155.69614513,0.00027297,7]
[338224985,1726392638475,-155.69614513,0.00027297,7]
[338224986,1726392638485,-155.69614513,0.00027297,7]
[338224987,1726392638494,-155.69614513,0.00027297,7]
[338224988,1726392638504,-155.69614513,0.00027297,7]
[338224989,1726392638513,-155.69614513,0.00027297,7]
[338224990,1726392638522,-155.69614513,0.00027297,7]
[338224991,1726392638532,-155.69614513,0.00027297,7]
[338224992,1726392638542,-155.69614513,0.00027297,7]
[338224993,1726392638551,-155.69614513,0.00027297,7]
[338224994,1726392638561,-155.69614513,0.00027297,7]
[338224995,1726392638572,-155.69614513,0.00027297,7]
[338224996,1726392638583,-155.69614513,0.00027297,7]
[338224997,1726392638593,-156.19,0.00027297,7]
[338224998,1726392638603,-314.19852349,0.00027309,2]
[338224999,1726392638612,-4868.31,0.00027357,3]
[338225000,1726392638623,-4056.93,0.00027357,3]
[338225001,1726392638634,-3380.77,0.00027357,3]
[338225002,1726392638643,-15908.1898113,0.00027367,4]
[338225003,1726392638655,-48858.989137,0.00027367,4]
[338225004,1726392638666,-500.0,0.00027373,2]
[338225005,1726392638675,-500.0,0.00027373,2]
[338225006,1726392638685,-268.40520299,0.00027373,2]
[338225007,1726392638695,-31816.3796226,0.00027377,4]
[338225008,1726392638706,-97717.978274,0.00027377,4]
[338225009,1726392638718,-7954.09490566,0.00027377,4]
[338225010,1726392638728,-24429.4945685,0.00027377,4]
[338225011,1726392638740,-500.0,0.00027386,2]
[338225012,1726392638751,-179.07962978,0.00027386,2]
[338225013,1726392638762,-500.0,0.00027386,2]
[338225014,1726392638771,-608.93545942,0.00027386,2]
[338225015,1726392638781,-156.6294138,0.00027386,2]
[338225016,1726392638791,-500.0,0.00027386,2]
[338225017,1726392638801,-500.0,0.00027386,2]
[338225018,1726392638810,-192.94646596,0.00027386,2]
[338225019,1726392638822,-151.0,0.00027386,7]
[338225020,1726392638832,-151.0,0.00027386,7]
[338225021,1726392638842,-151.0,0.00027386,7]
[338225022,1726392638852,-276.47474865,0.00027387,5]
[338225023,1726392638863,-375.0,0.00027387,7]
[338225024,1726392638874,-97717.978274,0.00027387,4]
[338225025,1726392638885,-151.0,0.00027387,7]
[338225026,1726392638894,-151.0,0.00027387,7]
[338225027,1726392638905,-151.0,0.00027387,7]
[338225028,1726392638915,-151.0,0.00027387,7]
[338225029,1726392638926,-4553.745042,0.00027387,7]
[338225030,1726392638936,-4553.745042,0.00027387,7]
[338225031,1726392638948,-161.813298,0.00027387,7]
[338225032,1726392638958,-1596.96221057,0.00027397,5]
[338225033,1726392638970,-500.0,0.00027397,5]
[338225034,1726392638981,-501.62261942,0.00027397,5]
[338225035,1726392638991,-500.0,0.00027397,5]
[338225036,1726392639000,-500.0,0.00027397,5]
[338225037,1726392639010,-503.56428653,0.00027397,5]
[338225038,1726392639027,-500.0,0.00027397,5]
[338225039,1726392639037,-501.41696664,0.00027397,5]
[338225040,1726392639047,-500.0,0.00027397,5]
[338225041,1726392639056,-500.0,0.00027397,5]
[338225042,1726392639067,-500.0,0.00027397,5]
[338225043,1726392639077,-500.0,0.00027397,5]
[338225044,1726392639086,-500.0,0.00027397,5]
[338225045,1726392639096,-500.0,0.00027397,5]
[338225046,1726392639105,-500.0,0.00027397,5]
[338225047,1726392639114,-500.0,0.00027397,5]
[338225048,1726392639126,-500.0,0.00027397,5]
[338225049,1726392639136,-500.0,0.00027397,5]
[338225050,1726392639145,-538.605515,0.00027397,5]
[338225051,1726392639156,-500.0,0.00027397,5]
[338225052,1726392639167,-500.0,0.00027397,5]
[338225053,1726392639177,-659.39,0.00027397,5]
[338225054,1726392639188,-500.0,0.00027397,5]
[338225055,1726392639199,-1030.79,0.00027397,5]
[338225056,1726392639211,-500.0,0.00027397,5]
[338225057,1726392639221,-500.49680411,0.00027397,5]
[338225058,1726392639230,-600.0,0.00027397,3]
[338225059,1726392639240,-500.0,0.00027397,5]
[338225060,1726392639250,-500.0,0.00027397,5]
[338225061,1726392639261,-500.0,0.00027397,5]
[338225062,1726392639272,-677.39,0.00027397,5]
[338225063,1726392639284,-500.0,0.00027397,5]
[338225064,1726392639295,-500.0,0.00027397,5]
[338225065,1726392639306,-500.0,0.00027397,5]
[338225066,1726392639316,-500.0,0.00027397,5]
[338225067,1726392639327,-500.0,0.00027397,5]
[338225068,1726392639338,-500.0,0.00027397,5]
[338225069,1726392639349,-500.0,0.00027397,5]
[338225070,1726392639358,-500.0,0.00027397,5]
[338225071,1726392639369,-500.0,0.00027397,5]
[338225072,1726392639380,-1783.43,0.00027397,2]
[338225073,1726392639390,-500.0,0.00027397,5]
[338225074,1726392639401,-500.0,0.00027397,5]
[338225075,1726392639410,-500.0,0.00027397,5]
[338225076,1726392639420,-551.08195047,0.00027397,5]
[338225077,1726392639429,-504.60286213,0.00027397,5]
[338225078,1726392639439,-1580.2,0.00027397,5]
[338225079,1726392639449,-1231.65,0.00027397,5]
[338225080,1726392639459,-500.0,0.00027397,5]
[338225081,1726392639469,-1001.58429669,0.00027397,2]
[338225082,1726392639479,-1358.61,0.00027397,5]
[338225083,1726392639489,-500.0,0.00027397,5]
[338225084,1726392639499,-500.0,0.00027397,5]
[338225085,1726392639508,-500.0,0.00027397,5]
[338225086,1726392639519,-500.0,0.00027397,5]
[338225087,1726392639528,-503.21866474,0.00027397,5]
[338225088,1726392639538,-500.0,0.00027397,5]
[338225089,1726392639547,-500.0,0.00027397,5]
[338225090,1726392639557,-501.27149116,0.00027397,5]
[338225091,1726392639568,-500.0,0.00027397,5]
[338225092,1726392639577,-500.0,0.00027397,5]
[338225093,1726392639587,-500.0,0.00027397,5]
[338225094,1726392639597,-500.0,0.00027397,5]
[338225095,1726392639606,-204.30020038,0.00027397,5]
[338225096,1726392639617,-500.0,0.00027397,5]
[338225097,1726392639630,-500.0,0.00027397,5]
[338225098,1726392639640,-1417.35,0.00027397,5]
[338225099,1726392639650,-468.51244069,0.00027397,5]
[338225100,1726392639660,-500.0,0.00027397,5]
[338225101,1726392639669,-500.0,0.00027397,5]
[338225103,1726392639679,-500.0,0.00027397,5]
[338225104,1726392639690,-285.1884437,0.00027397,5]
[338225105,1726392639699,-500.0,0.00027397,5]
[338225106,1726392639710,-1689.2,0.00027397,5]
[338225107,1726392639721,-238.83,0.00027397,5]
[338225108,1726392639731,-500.0,0.00027397,5]
[338225109,1726392639741,-500.0,0.00027397,5]
[338225111,1726392639751,-500.0,0.00027397,5]
[338225112,1726392639761,-504.48046982,0.00027397,5]
[338225114,1726392639771,-500.0,0.00027397,5]
[338225115,1726392639781,-500.0,0.00027397,5]
[338225117,1726392639791,-500.0,0.00027397,5]
[338225119,1726392639800,-502.63462837,0.00027397,5]
[338225121,1726392639810,-500.0,0.00027397,5]
[338225123,1726392639820,-500.0,0.00027397,5]
[338225125,1726392639829,-502.13994409,0.00027397,5]
[338225126,1726392639839,-500.0,0.00027397,5]
[338225128,1726392639849,-500.0,0.00027397,5]
[338225130,1726392639858,-636.94,0.00027397,5]
[338225132,1726392639870,-500.0,0.00027397,5]
[338225134,1726392639880,-500.0,0.00027397,5]
[338225136,1726392639890,-504.46124136,0.00027397,5]
[338225137,1726392639900,-500.0,0.00027397,5]
[338225139,1726392639910,-500.0,0.00027397,5]
[338225141,1726392639919,-500.0,0.00027397,5]
[338225143,1726392639929,-500.0,0.00027397,5]
[338225144,1726392639939,-500.0,0.00027397,5]
[338225146,1726392639949,-850.2,0.00027397,5]
[338225148,1726392639959,-500.0,0.00027397,5]
[338225150,1726392639969,-500.0,0.00027397,5]
[338225152,1726392639978,-500.0,0.00027397,5]
[338225153,1726392639989,-500.0,0.00027397,5]
[338225154,1726392639998,-500.0,0.00027397,5]
[338225155,1726392640008,-500.0,0.00027397,5]
[338225156,1726392640023,-503.57485761,0.00027397,5]
[338225157,1726392640033,-500.0,0.00027397,5]
[338225158,1726392640042,-500.0,0.00027397,5]
[338225159,1726392640054,-500.0,0.00027397,5]
[338225160,1726392640065,-500.0,0.00027397,5]
[338225161,1726392640076,-907.57,0.00027397,5]
[338225162,1726392640090,-618.98,0.00027397,5]
[338225163,1726392640100,-782.66,0.00027397,5]
[338225164,1726392640110,-203.69340136,0.00027397,5]
[338225165,1726392640120,-598.75174387,0.00027397,5]
[338225166,1726392640132,-500.0,0.00027397,5]
[338225167,1726392640142,-500.0,0.00027397,5]
[338225168,1726392640152,-500.0,0.00027397,5]
[338225169,1726392640162,-500.0,0.00027397,5]
[338225170,1726392640172,-954.12,0.00027397,5]
[338225171,1726392640182,-257.56897506,0.00027397,5]
[338225172,1726392640192,-500.0,0.00027397,5]
[338225173,1726392640202,-500.0,0.00027397,5]
[338225174,1726392640212,-500.0,0.00027397,5]
[338225175,1726392640221,-500.0,0.00027397,5]
[338225176,1726392640231,-500.0,0.00027397,5]
[338225177,1726392640240,-500.0,0.00027397,5]
[338225178,1726392640250,-501.09234577,0.00027397,5]
[338225179,1726392640260,-635.04,0.00027397,5]
[338225180,1726392640270,-501.75859677,0.00027397,5]
[338225181,1726392640279,-500.0,0.00027397,5]
[338225182,1726392640289,-508.16,0.00027397,5]
[338225183,1726392640299,-500.0,0.00027397,5]
[338225184,1726392640309,-517.47,0.00027397,5]
[338225185,1726392640319,-245.54126108,0.00027397,5]
[338225186,1726392640328,-500.0,0.00027397,5]
[338225187,1726392640338,-500.0,0.00027397,5]
[338225188,1726392640347,-500.0,0.00027397,5]
[338225189,1726392640357,-500.0,0.00027397,5]
[338225190,1726392640366,-500.0,0.00027397,5]
[338225191,1726392640377,-500.0,0.00027397,5]
[338225192,1726392640386,-1745.1,0.00027397,5]
[338225193,1726392640396,-500.0,0.00027397,5]
[338225194,1726392640405,-500.0,0.00027397,5]
[338225195,1726392640617,-500.0,0.00027397,5]
[338225196,1726392640630,-501.87704506,0.00027397,5]
[338225197,1726392640639,-500.0,0.00027397,5]
[338225198,1726392640649,-500.0,0.00027397,5]
[338225199,1726392640658,-570.25,0.00027397,5]
[338225200,1726392640668,-500.0,0.00027397,5]
[338225201,1726392640678,-500.0,0.00027397,5]
[338225202,1726392640687,-500.0,0.00027397,5]
[338225203,1726392640697,-500.0,0.00027397,5]
[338225204,1726392640708,-500.0,0.00027397,5]
[338225205,1726392640717,-500.0,0.00027397,5]
[338225206,1726392640727,-529.19972797,0.00027397,5]
[338225207,1726392640738,-1534.14,0.00027397,5]
[338225208,1726392640749,-500.0,0.00027397,5]
[338225209,1726392640759,-281.20315302,0.00027397,5]
[338225210,1726392640770,-808.8,0.00027397,5]
[338225211,1726392640779,-500.0,0.00027397,5]
[338225212,1726392640788,-500.0,0.00027397,5]
[338225213,1726392640798,-500.0,0.00027397,5]
[338225214,1726392640807,-1125.13,0.00027397,5]
[338225215,1726392640817,-495.27674614,0.00027397,5]
[338225216,1726392640828,-2083.52,0.00027397,5]
[338225217,1726392640837,-2083.52,0.00027397,5]
[338225218,1726392640847,-2083.52,0.00027397,5]
[338225219,1726392640858,-2083.52,0.00027397,5]
[338225220,1726392640869,-500.0,0.00027397,5]
[338225221,1726392640880,-2083.52,0.00027397,5]
[338225222,1726392640891,-2083.52,0.00027397,5]
[338225223,1726392640901,-2083.52,0.00027397,5]
[338225224,1726392640912,-2083.52,0.00027397,5]
[338225225,1726392640922,-2083.52,0.00027397,5]
[338225226,1726392640932,-2083.52,0.00027397,5]
[338225227,1726392640942,-2083.52,0.00027397,5]
[338225228,1726392640953,-2083.52,0.00027397,5]
[338225229,1726392640963,-2083.52,0.00027397,5]
[338225230,1726392640974,-2083.52,0.00027397,5]
[338225231,1726392640984,-500.0,0.00027397,5]
[338225232,1726392640996,-2083.52,0.00027397,5]
[338225233,1726392641006,-2083.52,0.00027397,5]
[338225234,1726392641015,-2083.52,0.00027397,5]
[338225235,1726392641024,-2083.52,0.00027397,5]
[338225236,1726392641034,-2083.52,0.00027397,5]
[338225237,1726392641048,-2083.52,0.00027397,5]
[338225238,1726392641057,-2083.52,0.00027397,5]
[338225239,1726392641066,-2083.52,0.00027397,5]
[338225240,1726392641076,-500.0,0.00027397,5]
[338225241,1726392641086,-2083.52,0.00027397,5]
[338225242,1726392641095,-2083.53088276,0.00027397,5]
[338225243,1726392641105,-500.0,0.00027397,5]
[338225244,1726392641115,-500.0,0.00027397,5]
[338225245,1726392641125,-500.0,0.00027397,5]
[338225246,1726392641135,-500.0,0.00027397,5]
[338225247,1726392641145,-1873.1,0.00027397,5]
[338225248,1726392641155,-500.0,0.00027397,5]
[338225249,1726392641165,-500.0,0.00027397,5]
[338225250,1726392641174,-502.06110106,0.00027397,5]
[338225251,1726392641183,-500.0,0.00027397,5]
[338225252,1726392641192,-826.04,0.00027397,5]
[338225253,1726392641201,-500.0,0.00027397,5]
[338225254,1726392641211,-2841.07,0.00027397,5]
[338225255,1726392641220,-500.0,0.00027397,5]
[338225256,1726392641230,-500.0,0.00027397,5]
[338225257,1726392641239,-500.0,0.00027397,5]
[338225258,1726392641250,-500.0,0.00027397,5]
[338225259,1726392641259,-605.73,0.00027397,5]
[338225260,1726392641269,-202.6468693,0.00027397,5]
[338225261,1726392641279,-500.0,0.00027397,5]
[338225262,1726392641289,-505.25604899,0.00027397,5]
[338225263,1726392641298,-500.0,0.00027397,5]
[338225264,1726392641308,-500.0,0.00027397,5]
[338225265,1726392641317,-500.0,0.00027397,5]
[338225266,1726392641327,-501.69799786,0.00027397,5]
[338225267,1726392641336,-500.0,0.00027397,5]
[338225268,1726392641346,-811.29,0.00027397,5]
[338225269,1726392641355,-500.0,0.00027397,5]
[338225270,1726392641364,-500.0,0.00027397,5]
[338225271,1726392641374,-500.0,0.00027397,5]
[338225272,1726392641383,-500.0,0.00027397,5]
[338225273,1726392641392,-500.0,0.00027397,5]
[338225274,1726392641401,-500.0,0.00027397,5]
[338225275,1726392641411,-500.0,0.00027397,5]
[338225276,1726392641420,-487.66067133,0.00027397,5]
[338225277,1726392641429,-500.0,0.00027397,5]
[338225278,1726392641438,-500.0,0.00027397,5]
[338225279,1726392641447,-934.82,0.00027397,5]
[338225280,1726392641457,-451.95225744,0.00027397,5]
[338225281,1726392641466,-500.0,0.00027397,5]
[338225282,1726392641476,-500.0,0.00027397,5]
[338225283,1726392641485,-550.61,0.00027397,5]
[338225284,1726392641494,-907.74,0.00027397,5]
[338225285,1726392641503,-1410.77,0.00027397,5]
[338225286,1726392641513,-500.0,0.00027397,5]
[338225287,1726392641522,-500.0,0.00027397,5]
[338225288,1726392641531,-593.61,0.00027397,5]
[338225289,1726392641541,-500.0,0.00027397,5]
[338225290,1726392641550,-500.0,0.00027397,5]
[338225291,1726392641559,-546.07486281,0.00027397,5]
[338225292,1726392641569,-645.59,0.00027397,5]
[338225293,1726392641578,-500.0,0.00027397,5]
[338225294,1726392641588,-752.92,0.00027397,5]
[338225295,1726392641597,-503.37438399,0.00027397,5]
[338225296,1726392641607,-500.0,0.00027397,5]
[338225297,1726392641617,-503.27452126,0.00027397,5]
[338225298,1726392641627,-500.0,0.00027397,5]
[338225299,1726392641637,-500.0,0.00027397,5]
[338225300,1726392641646,-500.0,0.00027397,5]
[338225301,1726392641655,-508.72097467,0.00027397,5]
[338225302,1726392641665,-510.4137093,0.00027397,5]
[338225303,1726392641674,-1170.51,0.00027397,5]
[338225304,1726392641683,-500.0,0.00027397,5]
[338225305,1726392641692,-3508.34,0.00027397,5]
[338225306,1726392641702,-500.0,0.00027397,5]
[338225307,1726392641711,-500.0,0.00027397,5]
[338225308,1726392641721,-500.0,0.00027397,5]
[338225309,1726392641730,-500.0,0.00027397,5]
[338225310,1726392641741,-500.0,0.00027397,5]
[338225311,1726392641750,-502.16208379,0.00027397,5]
[338225312,1726392641760,-517.73,0.00027397,5]
[338225313,1726392641769,-1258.57,0.00027397,5]
[338225314,1726392641779,-566.4,0.00027397,5]
[338225315,1726392641788,-500.0,0.00027397,5]
[338225316,1726392641798,-500.0,0.00027397,5]
[338225317,1726392641807,-500.0,0.00027397,5]
[338225318,1726392641817,-500.0,0.00027397,5]
[338225319,1726392641826,-523.96,0.00027397,5]
[338225320,1726392641836,-500.0,0.00027397,5]
[338225321,1726392641846,-1130.08,0.00027397,5]
[338225322,1726392641856,-500.0,0.00027397,5]
[338225323,1726392641866,-500.0,0.00027397,5]
[338225324,1726392641875,-509.78280988,0.00027397,5]
[338225325,1726392641885,-500.0,0.00027397,5]
[338225326,1726392641895,-500.0,0.00027397,5]
[338225327,1726392641905,-500.0,0.00027397,5]
[338225328,1726392641914,-500.0,0.00027397,5]
[338225329,1726392641923,-500.0,0.00027397,5]
[338225330,1726392641933,-500.0,0.00027397,5]
[338225331,1726392641951,-500.0,0.00027397,5]
[338225332,1726392641960,-1623.46,0.00027397,5]
[338225333,1726392641970,-500.0,0.00027397,5]
[338225334,1726392641980,-500.0,0.00027397,5]
[338225335,1726392641989,-500.0,0.00027397,5]
[338225336,1726392641999,-500.0,0.00027397,5]
[338225337,1726392642008,-500.0,0.00027397,5]
[338225338,1726392642018,-500.0,0.00027397,5]
[338225339,1726392642028,-500.0,0.00027397,5]
[338225340,1726392642044,-500.0,0.00027397,5]
[338225341,1726392642054,-500.0,0.00027397,5]
[338225342,1726392642063,-500.0,0.00027397,5]
[338225343,1726392642072,-1261.26,0.00027397,5]
[338225344,1726392642082,-911.09,0.00027397,5]
[338225345,1726392642091,-500.0,0.00027397,5]
[338225346,1726392642101,-846.7,0.00027397,5]
[338225347,1726392642111,-600.45797364,0.00027397,5]
[338225348,1726392642122,-452.74389486,0.00027397,5]
[338225349,1726392642131,-500.0,0.00027397,5]
[338225350,1726392642140,-771.62,0.00027397,5]
[338225351,1726392642149,-500.0,0.00027397,5]
[338225352,1726392642160,-500.0,0.00027397,5]
[338225353,1726392642169,-392.04099443,0.00027397,5]
[338225354,1726392642179,-507.61399502,0.00027397,5]
[338225355,1726392642188,-500.0,0.00027397,5]
[338225356,1726392642198,-500.0,0.00027397,5]
[338225357,1726392642207,-505.95135139,0.00027397,5]
[338225358,1726392642216,-500.0,0.00027397,5]
[338225359,1726392642225,-500.0,0.00027397,5]
[338225360,1726392642235,-1175.02,0.00027397,5]
[338225361,1726392642244,-745.51,0.00027397,5]
[338225362,1726392642253,-791.49,0.00027397,5]
[338225363,1726392642262,-500.0,0.00027397,5]
[338225364,1726392642273,-500.0,0.00027397,5]
[338225365,1726392642283,-500.0,0.00027397,5]
[338225366,1726392642292,-500.0,0.00027397,5]
[338225367,1726392642302,-500.0,0.00027397,5]
[338225368,1726392642312,-500.0,0.00027397,5]
[338225369,1726392642322,-500.0,0.00027397,5]
[338225370,1726392642333,-542.55294065,0.00027397,5]
[338225371,1726392642344,-862.12,0.00027397,5]
[338225372,1726392642354,-2849.34,0.00027397,5]
[338225373,1726392642363,-500.0,0.00027397,5]
[338225374,1726392642373,-500.0,0.00027397,5]
[338225375,1726392642382,-673.68,0.00027397,5]
[338225376,1726392642392,-500.0,0.00027397,120]
[338225377,1726392642402,-2186.5,0.00027397,5]
[338225378,1726392642411,-500.0,0.00027397,5]
[338225379,1726392642420,-500.0,0.00027397,5]
[338225380,1726392642430,-1659.66,0.00027397,5]
[338225381,1726392642440,-501.67689168,0.00027397,5]
[338225382,1726392642449,-504.01641916,0.00027397,5]
[338225383,1726392642458,-500.0,0.00027397,5]
[338225384,1726392642467,-595.37004629,0.00027397,5]
[338225385,1726392642476,-500.0,0.00027397,5]
[338225386,1726392642486,-500.0,0.00027397,5]
[338225387,1726392642495,-763.24,0.00027397,5]
[338225389,1726392642505,-500.0,0.00027397,5]
[338225390,1726392642514,-500.0,0.00027397,5]
[338225391,1726392642523,-500.0,0.00027397,5]
[338225392,1726392642533,-595.94,0.00027397,5]
[338225393,1726392642542,-500.0,0.00027397,5]
[338225394,1726392642551,-613.09,0.00027397,5]
[338225395,1726392642561,-500.0,0.00027397,5]
[338225396,1726392642570,-500.0,0.00027397,5]
[338225397,1726392642580,-1105.61,0.00027397,5]
[338225398,1726392642589,-500.0,0.00027397,5]
[338225399,1726392642598,-500.0,0.00027397,5]
[338225400,1726392642608,-500.0,0.00027397,5]
[338225401,1726392642617,-500.0,0.00027397,5]
[338225402,1726392642627,-500.0,0.00027397,5]
[338225403,1726392642636,-500.0,0.00027397,5]
[338225405,1726392642646,-381.48499014,0.00027397,5]
[338225407,1726392642655,-500.0,0.00027397,5]
[338225408,1726392642665,-2441.29,0.00027397,5]
[338225409,1726392642674,-500.0,0.00027397,5]
[338225411,1726392642684,-500.0,0.00027397,5]
[338225413,1726392642694,-500.0,0.00027397,5]
[338225415,1726392642703,-505.3132136,0.00027397,5]
[338225417,1726392642713,-518.52633962,0.00027397,5]
[338225419,1726392642722,-817.77,0.00027397,5]
[338225420,1726392642732,-500.0,0.00027397,5]
[338225421,1726392642743,-500.0,0.00027397,5]
[338225422,1726392642755,-505.81175269,0.00027397,5]
[338225423,1726392642764,-1226.07,0.00027397,5]
[338225424,1726392642775,-500.0,0.00027397,5]
[338225425,1726392642786,-2023.22,0.00027397,5]
[338225426,1726392642798,-500.0,0.00027397,5]
[338225427,1726392642810,-502.21930332,0.00027397,5]
[338225428,1726392642819,-500.0,0.00027397,5]
[338225429,1726392642830,-500.0,0.00027397,5]
[338225430,1726392642839,-500.0,0.00027397,5]
[338225431,1726392642850,-500.0,0.00027397,5]
[338225432,1726392642860,-689.88,0.00027397,5]
[338225433,1726392642870,-892.43,0.00027397,5]
[338225434,1726392642880,-500.0,0.00027397,5]
[338225435,1726392642890,-500.0,0.00027397,5]
[338225437,1726392642900,-599.19,0.00027397,5]
[338225438,1726392642910,-3789.5,0.00027397,5]
[338225439,1726392642919,-500.0,0.00027397,5]
[338225440,1726392642928,-540.3,0.00027397,5]
[338225441,1726392642939,-500.0,0.00027397,5]
[338225442,1726392642949,-501.86346807,0.00027397,5]
[338225443,1726392642960,-708.16,0.00027397,5]
[338225444,1726392642970,-500.0,0.00027397,5]
[338225445,1726392642979,-588.03,0.00027397,5]
[338225446,1726392642989,-151.0,0.00027397,7]
[338225447,1726392642999,-151.0,0.00027397,7]
[338225448,1726392643010,-151.0,0.00027397,7]
[338225449,1726392643021,-151.0,0.00027397,7]
[338225450,1726392643031,-151.0,0.00027397,7]
[338225451,1726392643041,-500.0,0.00027397,5]
[338225452,1726392643051,-151.0,0.00027397,7]
[338225453,1726392643062,-174.03536,0.00027397,7]
[338225454,1726392643072,-1487.68,0.00027397,2]
[338225455,1726392643084,-1928.62,0.00027397,5]
[338225456,1726392643094,-769.0,0.00027397,5]
[338225457,1726392643103,-1177.39,0.00027397,5]
[338225458,1726392643115,-500.0,0.00027397,2]
[338225459,1726392643126,-501.12207035,0.00027397,5]
[338225460,1726392643137,-1012.04493447,0.00027397,5]
[338225461,1726392643147,-500.0,0.00027397,5]
[338225462,1726392643156,-530.57,0.00027397,5]
[338225463,1726392643167,-500.0,0.00027397,5]
[338225464,1726392643176,-509.67420445,0.00027397,5]